Workbook

Sheet Micro Canal
B2: Selectiontool Micro Canal
F4: Taal/Language/Sprache/Jazyk | J4: Español
F5: =IF(data!$P$41=1,"Uitvoering",IF(data!$P$41=2,"Version",IF(data!$P$41=3,"Ausfürhung",IF(data!$P$41=4,"Version",IF(data!$P$41=5,"Versjon",IF(data!$P$41=6,"Versión",IF(data!$P$41=7,"Modell",IF(data!$P$41=8,"Verze",IF(data!$P$41=9,"ExtraTaal1",IF(data!$P$41=10,"ExtraTaal2",IF(data!$P$41=11,"ExtraTaal3",))))))))))) -> Versión | J5: =data!M23 -> 6 | K5: 14
J6: =IF(data!$P$41=1,NL!B4,IF(data!$P$41=2,EN!B4,IF(data!$P$41=4,FR!B4,IF(data!$P$41=3,DE!B4,IF(data!$P$41=5,NR!B4,IF(data!$P$41=6,SP!B4,IF(data!$P$41=7,SW!B4,IF(data!$P$41=8,TS!B4,IF(data!$P$41=9,ExtraTaal1!B4,IF(data!$P$41=10,ExtraTaal2!B4,IF(data!$P$41=11,ExtraTaal3!B4,))))))))))) -> Altura | K6: =IF(data!$P$41=1,NL!B6,IF(data!$P$41=2,EN!B6,IF(data!$P$41=4,FR!B6,IF(data!$P$41=3,DE!B6,IF(data!$P$41=5,NR!B6,IF(data!$P$41=6,SP!B6,IF(data!$P$41=7,SW!B6,IF(data!$P$41=8,TS!B6,IF(data!$P$41=9,ExtraTaal1!B6,IF(data!$P$41=10,ExtraTaal2!B6,IF(data!$P$41=11,ExtraTaal3!B6,))))))))))) -> Profund. | L6: [cm]
B7: =IF(data!$P$41=1,NL!E5,IF(data!$P$41=2,EN!E5,IF(data!$P$41=4,FR!E5,IF(data!$P$41=3,DE!E5,IF(data!$P$41=5,NR!E5,IF(data!$P$41=6,SP!E5,IF(data!$P$41=7,SW!E5,IF(data!$P$41=8,TS!E5,IF(data!$P$41=9,ExtraTaal1!E5,IF(data!$P$41=10,ExtraTaal2!E5,IF(data!$P$41=11,ExtraTaal3!E5,))))))))))) -> Temperaturas
B8: =IF(data!$P$41=1,NL!B8,IF(data!$P$41=2,EN!B8,IF(data!$P$41=4,FR!B8,IF(data!$P$41=3,DE!B8,IF(data!$P$41=5,NR!B8,IF(data!$P$41=6,SP!B8,IF(data!$P$41=7,SW!B8,IF(data!$P$41=8,TS!B8,IF(data!$P$41=9,ExtraTaal1!B8,IF(data!$P$41=10,ExtraTaal2!B8,IF(data!$P$41=11,ExtraTaal3!B8,))))))))))) -> Calefacción:
B9: =IF(data!$P$41=1,NL!B9,IF(data!$P$41=2,EN!B9,IF(data!$P$41=4,FR!B9,IF(data!$P$41=3,DE!B9,IF(data!$P$41=5,NR!B9,IF(data!$P$41=6,SP!B9,IF(data!$P$41=7,SW!B9,IF(data!$P$41=8,TS!B9,IF(data!$P$41=9,ExtraTaal1!B9,IF(data!$P$41=10,ExtraTaal2!B9,IF(data!$P$41=11,ExtraTaal3!B9,))))))))))) -> Agua impulsión | C9: =IF(data!$P$41=1,NL!C9,IF(data!$P$41=2,EN!C9,IF(data!$P$41=4,FR!C9,IF(data!$P$41=3,DE!C9,IF(data!$P$41=5,NR!C9,IF(data!$P$41=6,SP!C9,IF(data!$P$41=7,SW!C9,IF(data!$P$41=8,TS!C9,IF(data!$P$41=9,ExtraTaal1!C9,IF(data!$P$41=10,ExtraTaal2!C9,IF(data!$P$41=11,ExtraTaal3!C9,))))))))))) -> 0 | D9: =IF(data!$P$41=1,NL!D9,IF(data!$P$41=2,EN!D9,IF(data!$P$41=4,FR!D9,IF(data!$P$41=3,DE!D9,IF(data!$P$41=5,NR!D9,IF(data!$P$41=6,SP!D9,IF(data!$P$41=7,SW!D9,IF(data!$P$41=8,TS!D9,IF(data!$P$41=9,ExtraTaal1!D9,IF(data!$P$41=10,ExtraTaal2!D9,IF(data!$P$41=11,ExtraTaal3!D9,))))))))))) -> 0 | E9: 75 | F9: =IF(data!$R$34=1,"°C","°F") -> °C | L9: =IF(data!$P$41=1,NL!G4,IF(data!$P$41=2,EN!G4,IF(data!$P$41=4,FR!G4,IF(data!$P$41=3,DE!G4,IF(data!$P$41=5,NR!G4,IF(data!$P$41=6,SP!G4,IF(data!$P$41=7,SW!G4,IF(data!$P$41=8,TS!G4,IF(data!$P$41=9,ExtraTaal1!G4,IF(data!$P$41=10,ExtraTaal2!G4,IF(data!$P$41=11,ExtraTaal3!G4,))))))))))) -> Convers. de unidades | M9: =IF(data!$P$41=1,NL!M9,IF(data!$P$41=2,EN!M9,IF(data!$P$41=4,FR!M9,IF(data!$P$41=3,DE!M9,IF(data!$P$41=5,NR!M9,IF(data!$P$41=6,SP!M9,IF(data!$P$41=7,SW!M9,IF(data!$P$41=8,TS!M9,IF(data!$P$41=9,ExtraTaal1!M9,IF(data!$P$41=10,ExtraTaal2!M9,IF(data!$P$41=11,ExtraTaal3!M9,))))))))))) -> 0
B10: =IF(data!$P$41=1,NL!B10,IF(data!$P$41=2,EN!B10,IF(data!$P$41=4,FR!B10,IF(data!$P$41=3,DE!B10,IF(data!$P$41=5,NR!B10,IF(data!$P$41=6,SP!B10,IF(data!$P$41=7,SW!B10,IF(data!$P$41=8,TS!B10,IF(data!$P$41=9,ExtraTaal1!B10,IF(data!$P$41=10,ExtraTaal2!B10,IF(data!$P$41=11,ExtraTaal3!B10,))))))))))) -> Agua retorno | C10: =IF(data!$P$41=1,NL!C10,IF(data!$P$41=2,EN!C10,IF(data!$P$41=4,FR!C10,IF(data!$P$41=3,DE!C10,IF(data!$P$41=5,NR!C10,IF(data!$P$41=6,SP!C10,IF(data!$P$41=7,SW!C10,IF(data!$P$41=8,TS!C10,IF(data!$P$41=9,ExtraTaal1!C10,IF(data!$P$41=10,ExtraTaal2!C10,IF(data!$P$41=11,ExtraTaal3!C10,))))))))))) -> 0 | D10: =IF(data!$P$41=1,NL!D10,IF(data!$P$41=2,EN!D10,IF(data!$P$41=4,FR!D10,IF(data!$P$41=3,DE!D10,IF(data!$P$41=5,NR!D10,IF(data!$P$41=6,SP!D10,IF(data!$P$41=7,SW!D10,IF(data!$P$41=8,TS!D10,IF(data!$P$41=9,ExtraTaal1!D10,IF(data!$P$41=10,ExtraTaal2!D10,IF(data!$P$41=11,ExtraTaal3!D10,))))))))))) -> 0 | E10: 65 | F10: =F9 -> °C
B11: =IF(data!$P$41=1,NL!B11,IF(data!$P$41=2,EN!B11,IF(data!$P$41=4,FR!B11,IF(data!$P$41=3,DE!B11,IF(data!$P$41=5,NR!B11,IF(data!$P$41=6,SP!B11,IF(data!$P$41=7,SW!B11,IF(data!$P$41=8,TS!B11,IF(data!$P$41=9,ExtraTaal1!B11,IF(data!$P$41=10,ExtraTaal2!B11,IF(data!$P$41=11,ExtraTaal3!B11,))))))))))) -> Ambiente (bulbo seco) | C11: =IF(data!$P$41=1,NL!C11,IF(data!$P$41=2,EN!C11,IF(data!$P$41=4,FR!C11,IF(data!$P$41=3,DE!C11,IF(data!$P$41=5,NR!C11,IF(data!$P$41=6,SP!C11,IF(data!$P$41=7,SW!C11,IF(data!$P$41=8,TS!C11,IF(data!$P$41=9,ExtraTaal1!C11,IF(data!$P$41=10,ExtraTaal2!C11,IF(data!$P$41=11,ExtraTaal3!C11,))))))))))) -> 0 | D11: =IF(data!$P$41=1,NL!D11,IF(data!$P$41=2,EN!D11,IF(data!$P$41=4,FR!D11,IF(data!$P$41=3,DE!D11,IF(data!$P$41=5,NR!D11,IF(data!$P$41=6,SP!D11,IF(data!$P$41=7,SW!D11,IF(data!$P$41=8,TS!D11,IF(data!$P$41=9,ExtraTaal1!D11,IF(data!$P$41=10,ExtraTaal2!D11,IF(data!$P$41=11,ExtraTaal3!D11,))))))))))) -> 0 | E11: 20 | F11: =F9 -> °C
B15: =IF(data!$P$41=1,NL!B3,IF(data!$P$41=2,EN!B3,IF(data!$P$41=4,FR!B3,IF(data!$P$41=3,DE!B3,IF(data!$P$41=5,NR!B3,IF(data!$P$41=6,SP!B3,IF(data!$P$41=7,SW!B3,IF(data!$P$41=8,TS!B3,IF(data!$P$41=9,ExtraTaal1!B3,IF(data!$P$41=10,ExtraTaal2!B3,IF(data!$P$41=11,ExtraTaal3!B3,)))))))))))&" [cm]" -> Longitud [cm] | C15: =IF(data!$P$41=1,NL!B19,IF(data!$P$41=2,EN!B19,IF(data!$P$41=4,FR!B19,IF(data!$P$41=3,DE!B19,IF(data!$P$41=5,NR!B19,IF(data!$P$41=6,SP!B19,IF(data!$P$41=7,SW!B19,IF(data!$P$41=8,TS!B19,IF(data!$P$41=9,ExtraTaal1!B19,IF(data!$P$41=10,ExtraTaal2!B19,IF(data!$P$41=11,ExtraTaal3!B19,))))))))))) -> Voltaje control [V] | D15: =IF(data!$P$41=1,NL!C14,IF(data!$P$41=2,EN!C14,IF(data!$P$41=4,FR!C14,IF(data!$P$41=3,DE!C14,IF(data!$P$41=5,NR!C14,IF(data!$P$41=6,SP!C14,IF(data!$P$41=7,SW!C14,IF(data!$P$41=8,TS!C14,IF(data!$P$41=9,ExtraTaal1!C14,IF(data!$P$41=10,ExtraTaal2!C14,IF(data!$P$41=11,ExtraTaal3!C14,)))))))))))&IF(data!$R$34=1," [W]",IF(data!$R$34=2," [Btu/h]",)) -> Emisión calefacción [W] | E15: =IF(data!$P$41=1,NL!D14,IF(data!$P$41=2,EN!D14,IF(data!$P$41=4,FR!D14,IF(data!$P$41=3,DE!D14,IF(data!$P$41=5,NR!D14,IF(data!$P$41=6,SP!D14,IF(data!$P$41=7,SW!D14,IF(data!$P$41=8,TS!D14,IF(data!$P$41=9,ExtraTaal1!D14,IF(data!$P$41=10,ExtraTaal2!D14,IF(data!$P$41=11,ExtraTaal3!D14,)))))))))))&IF(data!$R$34=1," [kg/u]",IF(data!$R$34=2," [GPM]**",)) -> Caudal de agua, calefacción [kg/u] | F15: =IF(data!$P$41=1,NL!F6,IF(data!$P$41=2,EN!F6,IF(data!$P$41=4,FR!F6,IF(data!$P$41=3,DE!F6,IF(data!$P$41=5,NR!F6,IF(data!$P$41=6,SP!F6,IF(data!$P$41=7,SW!F6,IF(data!$P$41=8,TS!F6,IF(data!$P$41=9,ExtraTaal1!F6,IF(data!$P$41=10,ExtraTaal2!F6,IF(data!$P$41=11,ExtraTaal3!F6,)))))))))))&" ["&IF(data!$R$34=1,"kPa",IF(data!$R$34=2,"ftH2O"))&"]" -> Pérdida de carga del agua [kPa] | J15: =IF(data!$P$41=1,NL!I13,IF(data!$P$41=2,EN!I13,IF(data!$P$41=4,FR!I13,IF(data!$P$41=3,DE!I13,IF(data!$P$41=5,NR!I13,IF(data!$P$41=6,SP!I13,IF(data!$P$41=7,SW!I13,IF(data!$P$41=8,TS!I13,IF(data!$P$41=9,ExtraTaal1!I13,IF(data!$P$41=10,ExtraTaal2!I13,IF(data!$P$41=11,ExtraTaal3!I13,))))))))))) -> Presión sonora [dB(A)]**** | K15: =IF(data!$P$41=1,NL!J13,IF(data!$P$41=2,EN!J13,IF(data!$P$41=4,FR!J13,IF(data!$P$41=3,DE!J13,IF(data!$P$41=5,NR!J13,IF(data!$P$41=6,SP!J13,IF(data!$P$41=7,SW!J13,IF(data!$P$41=8,TS!J13,IF(data!$P$41=9,ExtraTaal1!J13,IF(data!$P$41=10,ExtraTaal2!J13,IF(data!$P$41=11,ExtraTaal3!J13,))))))))))) -> Potencia sonora [dB(A)]**** | L15: =IF(data!$P$41=1,NL!H13,IF(data!$P$41=2,EN!H13,IF(data!$P$41=4,FR!H13,IF(data!$P$41=3,DE!H13,IF(data!$P$41=5,NR!H13,IF(data!$P$41=6,SP!H13,IF(data!$P$41=7,SW!H13,IF(data!$P$41=8,TS!H13,IF(data!$P$41=9,ExtraTaal1!H13,IF(data!$P$41=10,ExtraTaal2!H13,IF(data!$P$41=11,ExtraTaal3!H13,))))))))))) -> Potencia eléctrica absorbida [W] | M15: =IF(data!$P$41=1,NL!G13,IF(data!$P$41=2,EN!G13,IF(data!$P$41=4,FR!G13,IF(data!$P$41=3,DE!G13,IF(data!$P$41=5,NR!G13,IF(data!$P$41=6,SP!G13,IF(data!$P$41=7,SW!G13,IF(data!$P$41=8,TS!G13,IF(data!$P$41=9,ExtraTaal1!G13,IF(data!$P$41=10,ExtraTaal2!G13,IF(data!$P$41=11,ExtraTaal3!G13,)))))))))))&" [l]" -> Volumen de agua [l]
B16: =CONCATENATE("Micro Canal, ",J6, " ",J5,"cm, ",K6, " ",K5,"cm") -> Micro Canal, Altura 6cm, Profund. 14cm | C16: 0 | D16: 0 | E16: 0 | F16: 0 | G16: 0 | H16: 0 | I16: 0 | J16: 0 | K16: 0 | L16: 0 | M16: 0
B17: 60 | C17: 24 | D17: =ROUND(IF(data!$R$34=1,data!S5,IF(data!$R$34=2,data!S5*3.412141633,)),0) -> 390 | E17: =IF(data!$R$34=1,ROUND(data!W5,0),IF(data!$R$34=2,ROUND(data!W5/272.7654,1),)) -> 34 | F17: =IF(data!$R$34=1,ROUND(data!Z5,2),IF(data!$R$34=2,ROUND(data!Z5*0.334552563,2),)) -> 0.04 | J17: =data!G5 -> 18 | K17: =J17+8 -> 26 | L17: =data!AQ5 -> 1.6 | M17: =data!$AP5 -> 0.1
B18: 95 | C18: 24 | D18: =ROUND(IF(data!$R$34=1,data!S6,IF(data!$R$34=2,data!S6*3.412141633,)),0) -> 780 | E18: =IF(data!$R$34=1,ROUND(data!W6,0),IF(data!$R$34=2,ROUND(data!W6/272.7654,1),)) -> 67 | F18: =IF(data!$R$34=1,ROUND(data!Z6,2),IF(data!$R$34=2,ROUND(data!Z6*0.334552563,2),)) -> 0.22 | J18: =data!G6 -> 21 | K18: =J18+8 -> 29 | L18: =data!AQ6 -> 1.9 | M18: =data!$AP6 -> 0.17
B19: 130 | C19: 24 | D19: =ROUND(IF(data!$R$34=1,data!S7,IF(data!$R$34=2,data!S7*3.412141633,)),0) -> 1170 | E19: =IF(data!$R$34=1,ROUND(data!W7,0),IF(data!$R$34=2,ROUND(data!W7/272.7654,1),)) -> 101 | F19: =IF(data!$R$34=1,ROUND(data!Z7,2),IF(data!$R$34=2,ROUND(data!Z7*0.334552563,2),)) -> 0.65 | J19: =data!G7 -> 22.8 | K19: =J19+8 -> 30.8 | L19: =data!AQ7 -> 2.2 | M19: =data!$AP7 -> 0.25
B20: 165 | C20: 24 | D20: =ROUND(IF(data!$R$34=1,data!S8,IF(data!$R$34=2,data!S8*3.412141633,)),0) -> 1560 | E20: =IF(data!$R$34=1,ROUND(data!W8,0),IF(data!$R$34=2,ROUND(data!W8/272.7654,1),)) -> 134 | F20: =IF(data!$R$34=1,ROUND(data!Z8,2),IF(data!$R$34=2,ROUND(data!Z8*0.334552563,2),)) -> 1.39 | J20: =data!G8 -> 24 | K20: =J20+8 -> 32 | L20: =data!AQ8 -> 3.1 | M20: =data!$AP8 -> 0.32
B21: 200 | C21: =data!AV9 -> 24 | D21: =ROUND(IF(data!$R$34=1,data!S9,IF(data!$R$34=2,data!S9*3.412141633,)),0) -> 1950 | E21: =IF(data!$R$34=1,ROUND(data!W9,0),IF(data!$R$34=2,ROUND(data!W9/272.7654,1),)) -> 168 | F21: =IF(data!$R$34=1,ROUND(data!Z9,2),IF(data!$R$34=2,ROUND(data!Z9*0.334552563,2),)) -> 2.57 | J21: =data!G9 -> 25 | K21: =J21+8 -> 33 | L21: =data!AQ9 -> 3.5 | M21: =data!$AP9 -> 0.4
B22: * | C22: =IF(data!$P$41=1,NL!B20,IF(data!$P$41=2,EN!B20,IF(data!$P$41=4,FR!B20,IF(data!$P$41=3,DE!B20,IF(data!$P$41=5,NR!B20,IF(data!$P$41=6,SP!B20,IF(data!$P$41=7,SW!B20,IF(data!$P$41=8,TS!B20,IF(data!$P$41=9,ExtraTaal1!B20,IF(data!$P$41=10,ExtraTaal2!B20,IF(data!$P$41=11,ExtraTaal3!B20,))))))))))) -> La potencia de enfriamiento se calcula según la norma EN 16430 con ventiladores de todas las alturas. | M22: v2021-04-19
B23: *** | C23: =IF(data!$P$41=1,NL!B22,IF(data!$P$41=2,EN!B22,IF(data!$P$41=4,FR!B22,IF(data!$P$41=3,DE!B22,IF(data!$P$41=5,NR!B22,IF(data!$P$41=6,SP!B22,IF(data!$P$41=7,SW!B22,IF(data!$P$41=8,TS!B22,IF(data!$P$41=9,ExtraTaal1!B22,IF(data!$P$41=10,ExtraTaal2!B22,IF(data!$P$41=11,ExtraTaal3!B22,))))))))))) -> Potencia sonora según ISO 3741: 2010, nivel de presión acústica con una amortiguación ambiental supuesta de 8 dB (A). | D23: =IF(data!$P$41=1,NL!C21,IF(data!$P$41=2,EN!C21,IF(data!$P$41=4,FR!C21,IF(data!$P$41=3,DE!C21,IF(data!$P$41=5,NR!C21,IF(data!$P$41=6,SP!C21,IF(data!$P$41=7,SW!C21,IF(data!$P$41=8,TS!C21,IF(data!$P$41=9,ExtraTaal1!C21,IF(data!$P$41=10,ExtraTaal2!C21,IF(data!$P$41=11,ExtraTaal3!C21,))))))))))) -> 0 | E23: =IF(data!$P$41=1,NL!D21,IF(data!$P$41=2,EN!D21,IF(data!$P$41=4,FR!D21,IF(data!$P$41=3,DE!D21,IF(data!$P$41=5,NR!D21,IF(data!$P$41=6,SP!D21,IF(data!$P$41=7,SW!D21,IF(data!$P$41=8,TS!D21,IF(data!$P$41=9,ExtraTaal1!D21,IF(data!$P$41=10,ExtraTaal2!D21,IF(data!$P$41=11,ExtraTaal3!D21,))))))))))) -> 0 | F23: =IF(data!$P$41=1,NL!E21,IF(data!$P$41=2,EN!E21,IF(data!$P$41=4,FR!E21,IF(data!$P$41=3,DE!E21,IF(data!$P$41=5,NR!E21,IF(data!$P$41=6,SP!E21,IF(data!$P$41=7,SW!E21,IF(data!$P$41=8,TS!E21,IF(data!$P$41=9,ExtraTaal1!E21,IF(data!$P$41=10,ExtraTaal2!E21,IF(data!$P$41=11,ExtraTaal3!E21,))))))))))) -> 0 | G23: =IF(data!$P$41=1,NL!F21,IF(data!$P$41=2,EN!F21,IF(data!$P$41=4,FR!F21,IF(data!$P$41=3,DE!F21,IF(data!$P$41=5,NR!F21,IF(data!$P$41=6,SP!F21,IF(data!$P$41=7,SW!F21,IF(data!$P$41=8,TS!F21,IF(data!$P$41=9,ExtraTaal1!F21,IF(data!$P$41=10,ExtraTaal2!F21,IF(data!$P$41=11,ExtraTaal3!F21,))))))))))) -> 0 | H23: =IF(data!$P$41=1,NL!G21,IF(data!$P$41=2,EN!G21,IF(data!$P$41=4,FR!G21,IF(data!$P$41=3,DE!G21,IF(data!$P$41=5,NR!G21,IF(data!$P$41=6,SP!G21,IF(data!$P$41=7,SW!G21,IF(data!$P$41=8,TS!G21,IF(data!$P$41=9,ExtraTaal1!G21,IF(data!$P$41=10,ExtraTaal2!G21,IF(data!$P$41=11,ExtraTaal3!G21,))))))))))) -> 0 | I23: =IF(data!$P$41=1,NL!H21,IF(data!$P$41=2,EN!H21,IF(data!$P$41=4,FR!H21,IF(data!$P$41=3,DE!H21,IF(data!$P$41=5,NR!H21,IF(data!$P$41=6,SP!H21,IF(data!$P$41=7,SW!H21,IF(data!$P$41=8,TS!H21,IF(data!$P$41=9,ExtraTaal1!H21,IF(data!$P$41=10,ExtraTaal2!H21,IF(data!$P$41=11,ExtraTaal3!H21,))))))))))) -> 0 | J23: =IF(data!$P$41=1,NL!I21,IF(data!$P$41=2,EN!I21,IF(data!$P$41=4,FR!I21,IF(data!$P$41=3,DE!I21,IF(data!$P$41=5,NR!I21,IF(data!$P$41=6,SP!I21,IF(data!$P$41=7,SW!I21,IF(data!$P$41=8,TS!I21,IF(data!$P$41=9,ExtraTaal1!I21,IF(data!$P$41=10,ExtraTaal2!I21,IF(data!$P$41=11,ExtraTaal3!I21,))))))))))) -> 0 | K23: =IF(data!$P$41=1,NL!J21,IF(data!$P$41=2,EN!J21,IF(data!$P$41=4,FR!J21,IF(data!$P$41=3,DE!J21,IF(data!$P$41=5,NR!J21,IF(data!$P$41=6,SP!J21,IF(data!$P$41=7,SW!J21,IF(data!$P$41=8,TS!J21,IF(data!$P$41=9,ExtraTaal1!J21,IF(data!$P$41=10,ExtraTaal2!J21,IF(data!$P$41=11,ExtraTaal3!J21,))))))))))) -> 0 | L23: =IF(data!$P$41=1,NL!K21,IF(data!$P$41=2,EN!K21,IF(data!$P$41=4,FR!K21,IF(data!$P$41=3,DE!K21,IF(data!$P$41=5,NR!K21,IF(data!$P$41=6,SP!K21,IF(data!$P$41=7,SW!K21,IF(data!$P$41=8,TS!K21,IF(data!$P$41=9,ExtraTaal1!K21,IF(data!$P$41=10,ExtraTaal2!K21,IF(data!$P$41=11,ExtraTaal3!K21,))))))))))) -> 0 | M23: =IF(data!$P$41=1,NL!L21,IF(data!$P$41=2,EN!L21,IF(data!$P$41=4,FR!L21,IF(data!$P$41=3,DE!L21,IF(data!$P$41=5,NR!L21,IF(data!$P$41=6,SP!L21,IF(data!$P$41=7,SW!L21,IF(data!$P$41=8,TS!L21,IF(data!$P$41=9,ExtraTaal1!L21,IF(data!$P$41=10,ExtraTaal2!L21,IF(data!$P$41=11,ExtraTaal3!L21,))))))))))) -> 0
C24: =IF(data!$P$41=1,NL!B22,IF(data!$P$41=2,EN!B22,IF(data!$P$41=4,FR!B22,IF(data!$P$41=3,DE!B22,IF(data!$P$41=5,NR!B22,IF(data!$P$41=6,SP!B22,IF(data!$P$41=7,SW!B22,IF(data!$P$41=8,TS!B22,IF(data!$P$41=9,ExtraTaal1!B22,IF(data!$P$41=10,ExtraTaal2!B22,IF(data!$P$41=11,ExtraTaal3!B22,))))))))))) -> Potencia sonora según ISO 3741: 2010, nivel de presión acústica con una amortiguación ambiental supuesta de 8 dB (A). | D24: =IF(data!$P$41=1,NL!C22,IF(data!$P$41=2,EN!C22,IF(data!$P$41=4,FR!C22,IF(data!$P$41=3,DE!C22,IF(data!$P$41=5,NR!C22,IF(data!$P$41=6,SP!C22,IF(data!$P$41=7,SW!C22,IF(data!$P$41=8,TS!C22,IF(data!$P$41=9,ExtraTaal1!C22,IF(data!$P$41=10,ExtraTaal2!C22,IF(data!$P$41=11,ExtraTaal3!C22,))))))))))) -> 0 | E24: =IF(data!$P$41=1,NL!D22,IF(data!$P$41=2,EN!D22,IF(data!$P$41=4,FR!D22,IF(data!$P$41=3,DE!D22,IF(data!$P$41=5,NR!D22,IF(data!$P$41=6,SP!D22,IF(data!$P$41=7,SW!D22,IF(data!$P$41=8,TS!D22,IF(data!$P$41=9,ExtraTaal1!D22,IF(data!$P$41=10,ExtraTaal2!D22,IF(data!$P$41=11,ExtraTaal3!D22,))))))))))) -> 0 | F24: =IF(data!$P$41=1,NL!E22,IF(data!$P$41=2,EN!E22,IF(data!$P$41=4,FR!E22,IF(data!$P$41=3,DE!E22,IF(data!$P$41=5,NR!E22,IF(data!$P$41=6,SP!E22,IF(data!$P$41=7,SW!E22,IF(data!$P$41=8,TS!E22,IF(data!$P$41=9,ExtraTaal1!E22,IF(data!$P$41=10,ExtraTaal2!E22,IF(data!$P$41=11,ExtraTaal3!E22,))))))))))) -> 0 | G24: =IF(data!$P$41=1,NL!F22,IF(data!$P$41=2,EN!F22,IF(data!$P$41=4,FR!F22,IF(data!$P$41=3,DE!F22,IF(data!$P$41=5,NR!F22,IF(data!$P$41=6,SP!F22,IF(data!$P$41=7,SW!F22,IF(data!$P$41=8,TS!F22,IF(data!$P$41=9,ExtraTaal1!F22,IF(data!$P$41=10,ExtraTaal2!F22,IF(data!$P$41=11,ExtraTaal3!F22,))))))))))) -> 0 | H24: =IF(data!$P$41=1,NL!G22,IF(data!$P$41=2,EN!G22,IF(data!$P$41=4,FR!G22,IF(data!$P$41=3,DE!G22,IF(data!$P$41=5,NR!G22,IF(data!$P$41=6,SP!G22,IF(data!$P$41=7,SW!G22,IF(data!$P$41=8,TS!G22,IF(data!$P$41=9,ExtraTaal1!G22,IF(data!$P$41=10,ExtraTaal2!G22,IF(data!$P$41=11,ExtraTaal3!G22,))))))))))) -> 0 | I24: =IF(data!$P$41=1,NL!H22,IF(data!$P$41=2,EN!H22,IF(data!$P$41=4,FR!H22,IF(data!$P$41=3,DE!H22,IF(data!$P$41=5,NR!H22,IF(data!$P$41=6,SP!H22,IF(data!$P$41=7,SW!H22,IF(data!$P$41=8,TS!H22,IF(data!$P$41=9,ExtraTaal1!H22,IF(data!$P$41=10,ExtraTaal2!H22,IF(data!$P$41=11,ExtraTaal3!H22,))))))))))) -> 0 | J24: =IF(data!$P$41=1,NL!I22,IF(data!$P$41=2,EN!I22,IF(data!$P$41=4,FR!I22,IF(data!$P$41=3,DE!I22,IF(data!$P$41=5,NR!I22,IF(data!$P$41=6,SP!I22,IF(data!$P$41=7,SW!I22,IF(data!$P$41=8,TS!I22,IF(data!$P$41=9,ExtraTaal1!I22,IF(data!$P$41=10,ExtraTaal2!I22,IF(data!$P$41=11,ExtraTaal3!I22,))))))))))) -> 0 | K24: =IF(data!$P$41=1,NL!J22,IF(data!$P$41=2,EN!J22,IF(data!$P$41=4,FR!J22,IF(data!$P$41=3,DE!J22,IF(data!$P$41=5,NR!J22,IF(data!$P$41=6,SP!J22,IF(data!$P$41=7,SW!J22,IF(data!$P$41=8,TS!J22,IF(data!$P$41=9,ExtraTaal1!J22,IF(data!$P$41=10,ExtraTaal2!J22,IF(data!$P$41=11,ExtraTaal3!J22,))))))))))) -> 0 | L24: =IF(data!$P$41=1,NL!K22,IF(data!$P$41=2,EN!K22,IF(data!$P$41=4,FR!K22,IF(data!$P$41=3,DE!K22,IF(data!$P$41=5,NR!K22,IF(data!$P$41=6,SP!K22,IF(data!$P$41=7,SW!K22,IF(data!$P$41=8,TS!K22,IF(data!$P$41=9,ExtraTaal1!K22,IF(data!$P$41=10,ExtraTaal2!K22,IF(data!$P$41=11,ExtraTaal3!K22,))))))))))) -> 0 | M24: =IF(data!$P$41=1,NL!L22,IF(data!$P$41=2,EN!L22,IF(data!$P$41=4,FR!L22,IF(data!$P$41=3,DE!L22,IF(data!$P$41=5,NR!L22,IF(data!$P$41=6,SP!L22,IF(data!$P$41=7,SW!L22,IF(data!$P$41=8,TS!L22,IF(data!$P$41=9,ExtraTaal1!L22,IF(data!$P$41=10,ExtraTaal2!L22,IF(data!$P$41=11,ExtraTaal3!L22,))))))))))) -> 0

Sheet data (hidden)
J1: heating | K1: Ti | L1: =IF($R$34=1,$M1,IF($R$34=2,(M1-32)/1.8,)) -> 75 | M1: ='Micro Canal'!E9 -> 75 | AD1: cooling | AE1: Ti | AF1: =IF($R$34=1,$AG1,IF($R$34=2,($AG1-32)/1.8,)) -> 0 | AG1: ='Micro Canal'!J9 -> 0 | AI1: RH | AJ1: ='Micro Canal'!J12 -> 0
K2: Tr | L2: =IF($R$34=1,$M2,IF($R$34=2,(M2-32)/1.8,)) -> 65 | M2: ='Micro Canal'!E10 -> 65 | AE2: Tr | AF2: =IF($R$34=1,$AG2,IF($R$34=2,($AG2-32)/1.8,)) -> 0 | AG2: ='Micro Canal'!J10 -> 0
K3: Ta | L3: =IF($R$34=1,$M3,IF($R$34=2,(M3-32)/1.8,)) -> 20 | M3: ='Micro Canal'!E11 -> 20 | AE3: Ta | AF3: =IF($R$34=1,$AG3,IF($R$34=2,($AG3-32)/1.8,)) -> 0 | AG3: ='Micro Canal'!J11 -> 0
A4: kolomindex | B4: 2 | C4: 3 | D4: 4 | E4: 5 | F4: 6 | G4: 7 | H4: 8 | I4: 9 | J4: 10 | K4: 11 | L4: 12 | M4: 13 | N4: 14 | O4: 15 | P4: 16 | Q4: 17 | R4: 18 | S4: 19 | T4: 20 | U4: 21 | V4: 22 | W4: 23 | X4: 24 | Y4: 25 | Z4: 26 | AA4: 27 | AB4: 28 | AC4: 29 | AD4: 30 | AE4: 31 | AF4: 32 | AG4: 33 | AH4: 34 | AI4: 35 | AJ4: 36 | AK4: 37 | AL4: 38 | AM4: 39 | AN4: 40 | AO4: 41 | AP4: 42 | AQ4: 43 | AR4: 44 | AS4: 45 | AT4: 46 | AU4: 47 | AV4: 48 | AW4: 49 | AX4: 50 | AY4: 51 | AZ4: 52 | BA4: 53 | BB4: 54 | BC4: 55 | BD4: 56 | BE4: 57 | BF4: 58 | BG4: 59 | BH4: 60 | BI4: 61 | BJ4: 62
A5: =CONCATENATE('Micro Canal'!$J$5,60,'Micro Canal'!$K$5) -> 66014 | B5: =VLOOKUP($A5,$A$13:$BJ$17,B$4,0) -> 6 | C5: 60 | D5: 0 | E5: 14 | F5: 0 | G5: 18 | H5: 0 | I5: 0 | J5: 0 | K5: 390 | L5: 0 | M5: 0 | N5: 0 | O5: 1 | P5: 0 | Q5: 0 | R5: =VLOOKUP($A5,$A$13:$BJ$17,R$4,0) -> 0 | S5: 390 | T5: 0 | U5: 0 | V5: 0 | W5: 34 | X5: 0 | Y5: 0 | Z5: 0.03672830672 | AA5: 0.0065250871 | AB5: 0.0005785274086 | AC5: 1.805666115 | AD5: 0 | AE5: 0 | AF5: 0 | AG5: 0 | AH5: =VLOOKUP($A5,$A$13:$BJ$17,AH$4,0) -> 0 | AI5: 0 | AP5: 0.1 | AQ5: 1.6 | AR5: N/A | AS5: N/A | AT5: 0 | AU5: 0 | AV5: 24 | AW5: N/A | AX5: =VLOOKUP($A5,$A$13:$BJ$17,AX$4,0) -> N/A | AY5: 0 | BF5: 0
A6: =CONCATENATE('Micro Canal'!$J$5,95,'Micro Canal'!$K$5) -> 69514 | B6: 6 | C6: 95 | D6: 0 | E6: 14 | F6: 0 | G6: 21 | H6: 0 | I6: 0 | J6: 0 | K6: 780 | L6: 0 | M6: 0 | N6: 0 | O6: 1 | P6: 0 | Q6: 0 | R6: 0 | S6: 780 | T6: 0 | U6: 0 | V6: 0 | W6: 67 | X6: 0 | Y6: 0 | Z6: 0.2169074647 | AA6: 0.0065250871 | AB6: 0.0005785274086 | AC6: 1.805666115 | AD6: 0 | AE6: 0 | AF6: 0 | AG6: 0 | AH6: 0 | AI6: 0 | AP6: 0.17 | AQ6: 1.9 | AR6: N/A | AS6: N/A | AT6: 0 | AU6: 0 | AV6: 24 | AW6: N/A | AX6: N/A | AY6: 0 | BF6: 0
A7: =CONCATENATE('Micro Canal'!$J$5,130,'Micro Canal'!$K$5) -> 613014 | B7: 6 | C7: 130 | D7: 0 | E7: 14 | F7: 0 | G7: 22.8 | H7: 0 | I7: 0 | J7: 0 | K7: 1170 | L7: 0 | M7: 0 | N7: 0 | O7: 1 | P7: 0 | Q7: 0 | R7: 0 | S7: 1170 | T7: 0 | U7: 0 | V7: 0 | W7: 101 | X7: 0 | Y7: 0 | Z7: 0.6457845327 | AA7: 0.0065250871 | AB7: 0.0005785274086 | AC7: 1.805666115 | AD7: 0 | AE7: 0 | AF7: 0 | AG7: 0 | AH7: 0 | AI7: 0 | AP7: 0.25 | AQ7: 2.2 | AR7: N/A | AS7: N/A | AT7: 0 | AU7: 0 | AV7: 24 | AW7: N/A | AX7: N/A | AY7: 0 | BF7: 0
A8: =CONCATENATE('Micro Canal'!$J$5,165,'Micro Canal'!$K$5) -> 616514 | B8: 6 | C8: 165 | D8: 0 | E8: 14 | F8: 0 | G8: 24 | H8: 0 | I8: 0 | J8: 0 | K8: 1560 | L8: 0 | M8: 0 | N8: 0 | O8: 1 | P8: 0 | Q8: 0 | R8: 0 | S8: 1560 | T8: 0 | U8: 0 | V8: 0 | W8: 134 | X8: 0 | Y8: 0 | Z8: 1.391674238 | AA8: 0.0065250871 | AB8: 0.0005785274086 | AC8: 1.805666115 | AD8: 0 | AE8: 0 | AF8: 0 | AG8: 0 | AH8: 0 | AI8: 0 | AP8: 0.32 | AQ8: 3.1 | AR8: N/A | AS8: N/A | AT8: 0 | AU8: 0 | AV8: 24 | AW8: N/A | AX8: N/A | AY8: 0 | BF8: 0
A9: =CONCATENATE('Micro Canal'!$J$5,200,'Micro Canal'!$K$5) -> 620014 | B9: =VLOOKUP($A9,$A$13:$BJ$17,B$4,0) -> 6 | C9: =VLOOKUP($A9,$A$13:$BJ$17,C$4,0) -> 200 | D9: 0 | E9: 14 | F9: 0 | G9: 25 | H9: 0 | I9: 0 | J9: 0 | K9: 1950 | L9: 0 | M9: 0 | N9: 0 | O9: 1 | P9: 0 | Q9: 0 | R9: 0 | S9: 1950 | T9: 0 | U9: 0 | V9: 0 | W9: 168 | X9: 0 | Y9: 0 | Z9: 2.56706815 | AA9: 0.0065250871 | AB9: 0.0005785274086 | AC9: 1.805666115 | AD9: 0 | AE9: 0 | AF9: 0 | AG9: 0 | AH9: 0 | AI9: 0 | AP9: 0.4 | AQ9: 3.5 | AR9: N/A | AS9: N/A | AT9: 0 | AU9: 0 | AV9: 24 | AW9: N/A | AX9: N/A | AY9: 0 | BF9: 0
F11: soundpressure level | J11: power | K11: 75/65/20 | N11: n | R11: result | S11: power | V11: result | W11: flow | Z11: Pressure loss | AD11: power | AE11: 16/18/27 | AG11: n | AJ11: result | AK11: power | AM11: result | AN11: flow | AQ11: electrical power nominal | AW11: BMS-stuurspanning | AZ11: Sensible heat factor | BC11: Total cooling capacity | BG11: Diff. Total and sensible | BJ11: Show or not
A12: lookup code | B12: height | C12: length | D12: type | E12: depth | F12: 0 | G12: 1 | H12: 2 | I12: 3 | J12: 0 | K12: 1 | L12: 2 | M12: 3 | N12: 0 | O12: 1 | P12: 2 | Q12: 3 | R12: 0 | S12: 1 | T12: 2 | U12: 3 | V12: 0 | W12: 1 | X12: 2 | Y12: 3 | Z12: Δp | AA12: k1 | AB12: k2 | AC12: n | AD12: 1 | AE12: 2 | AF12: 3 | AG12: 1 | AH12: 2 | AI12: 3 | AJ12: 1 | AK12: 2 | AL12: 3 | AM12: 1 | AN12: 2 | AO12: 3 | AP12: watervolume | AQ12: 1 | AR12: 2 | AS12: 3 | AU12: 0 | AV12: 1 | AW12: 2 | AX12: 3 | AZ12: SHF 1 | BA12: SHF 2 | BB12: SHF 3 | BC12: Q,t 1 | BD12: Q,t 2 | BE12: Q,t 3 | BG12: ΔQ,t,s 1 | BH12: ΔQ,t,s 2 | BI12: ΔQ,t,s 3 | BJ12: OK/NOTOK
A13: =CONCATENATE(B13,C13,E13) -> 66014 | B13: 6 | C13: 60 | E13: 14 | G13: 18 | K13: 390 | O13: 1 | R13: =ROUND(J13*POWER((($L$1-$L$2)/LN(($L$1-$L$3)/($L$2-$L$3)))/((75-65)/LN((75-20)/(65-20))),N13),0) -> 0 | S13: =ROUND(K13*POWER((($L$1-$L$2)/LN(($L$1-$L$3)/($L$2-$L$3)))/((75-65)/LN((75-20)/(65-20))),O13),0) -> 390 | T13: =ROUND(L13*POWER((($L$1-$L$2)/LN(($L$1-$L$3)/($L$2-$L$3)))/((75-65)/LN((75-20)/(65-20))),P13),0) -> 0 | U13: =ROUND(M13*POWER((($L$1-$L$2)/LN(($L$1-$L$3)/($L$2-$L$3)))/((75-65)/LN((75-20)/(65-20))),Q13),0) -> 0 | V13: =ROUND(R13*3600/(4186*ABS($L$1-$L$2)),0) -> 0 | W13: =ROUND(S13*3600/(4186*ABS($L$1-$L$2)),0) -> 34 | X13: =ROUND(T13*3600/(4186*ABS($L$1-$L$2)),0) -> 0 | Y13: =ROUND(U13*3600/(4186*ABS($L$1-$L$2)),0) -> 0 | Z13: =(($AA13*($W13^$AC13)*(($C13-19.5)/100)*2)+$AB13*($W13^2))*0.0098 -> 0.03672830672 | AA13: 0.0065250871 | AB13: 0.0005785274086 | AC13: 1.805666115 | AJ13: =ROUND(AD13*POWER((($AF$1-$AF$2)/LN(($AF$1-$AF$3)/($AF$2-$AF$3)))/((16-18)/LN((16-27)/(18-27))),AG13),0) ->  | AL13: =ROUND(AF13*POWER((($AF$1-$AF$2)/LN(($AF$1-$AF$3)/($AF$2-$AF$3)))/((16-18)/LN((16-27)/(18-27))),AI13),0) ->  | AM13: =ROUND(AJ13*3600/(4186*ABS($AF$1-$AF$2)),0) ->  | AN13: =ROUND(AK13*3600/(4186*ABS($AF$1-$AF$2)),0) ->  | AO13: =ROUND(AL13*3600/(4186*ABS($AF$1-$AF$2)),0) ->  | AP13: 0.1 | AQ13: 1.6 | AR13: N/A | AS13: N/A | AU13: 0 | AV13: 24 | AW13: N/A | AX13: N/A | AZ13: =IF(1/(1+((2258*((0.622/((101325/(1*611*EXP(17.27*((($AF$1+$AF$2)/2)/((($AF$1+$AF$2)/2)+237.3))))))-1)*1000-(0.622/((101325/($AJ$1*611*EXP(17.27*($AF$3/($AF$3+237.3))))))-1)*1000))/(1005*((($AF$1+$AF$2)/2)-$AF$3))))>1,1,1/(1+((2258*((0.622/((101325/(1*611*EXP(17.27*((($AF$1+$AF$2)/2)/((($AF$1+$AF$2)/2)+237.3))))))-1)*1000-(0.622/((101325/($AJ$1*611*EXP(17.27*($AF$3/($AF$3+237.3))))))-1)*1000))/(1005*((($AF$1+$AF$2)/2)-$AF$3))))) ->  | BA13: =IF(1/(1+((2258*((0.622/((101325/(1*611*EXP(17.27*((($AF$1+$AF$2)/2)/((($AF$1+$AF$2)/2)+237.3))))))-1)*1000-(0.622/((101325/($AJ$1*611*EXP(17.27*($AF$3/($AF$3+237.3))))))-1)*1000))/(1005*((($AF$1+$AF$2)/2)-$AF$3))))>1,1,1/(1+((2258*((0.622/((101325/(1*611*EXP(17.27*((($AF$1+$AF$2)/2)/((($AF$1+$AF$2)/2)+237.3))))))-1)*1000-(0.622/((101325/($AJ$1*611*EXP(17.27*($AF$3/($AF$3+237.3))))))-1)*1000))/(1005*((($AF$1+$AF$2)/2)-$AF$3))))) ->  | BB13: =IF(1/(1+((2258*((0.622/((101325/(1*611*EXP(17.27*((($AF$1+$AF$2)/2)/((($AF$1+$AF$2)/2)+237.3))))))-1)*1000-(0.622/((101325/($AJ$1*611*EXP(17.27*($AF$3/($AF$3+237.3))))))-1)*1000))/(1005*((($AF$1+$AF$2)/2)-$AF$3))))>1,1,1/(1+((2258*((0.622/((101325/(1*611*EXP(17.27*((($AF$1+$AF$2)/2)/((($AF$1+$AF$2)/2)+237.3))))))-1)*1000-(0.622/((101325/($AJ$1*611*EXP(17.27*($AF$3/($AF$3+237.3))))))-1)*1000))/(1005*((($AF$1+$AF$2)/2)-$AF$3))))) ->  | BC13: =AJ13/AZ13 ->  | BG13: =BC13-AJ13 ->  | BJ13: =IF(SUM(BG13:BI13)=0,1,0) -> 
A14: =CONCATENATE(B14,C14,E14) -> 69514 | B14: 6 | C14: 95 | E14: 14 | G14: 21 | K14: 780 | O14: 1 | R14: 0 | S14: 780 | T14: 0 | U14: 0 | V14: 0 | W14: 67 | X14: 0 | Y14: 0 | Z14: =(($AA14*($W14^$AC14)*(($C14-19.5)/100)*2)+$AB14*($W14^2))*0.0098 -> 0.2169074647 | AA14: 0.0065250871 | AB14: 0.0005785274086 | AC14: 1.805666115 | AL14: =ROUND(AF14*POWER((($AF$1-$AF$2)/LN(($AF$1-$AF$3)/($AF$2-$AF$3)))/((16-18)/LN((16-27)/(18-27))),AI14),0) ->  | AP14: 0.17 | AQ14: 1.9 | AR14: N/A | AS14: N/A | AU14: 0 | AV14: 24 | AW14: N/A | AX14: N/A | AZ14: =IF(1/(1+((2258*((0.622/((101325/(1*611*EXP(17.27*((($AF$1+$AF$2)/2)/((($AF$1+$AF$2)/2)+237.3))))))-1)*1000-(0.622/((101325/($AJ$1*611*EXP(17.27*($AF$3/($AF$3+237.3))))))-1)*1000))/(1005*((($AF$1+$AF$2)/2)-$AF$3))))>1,1,1/(1+((2258*((0.622/((101325/(1*611*EXP(17.27*((($AF$1+$AF$2)/2)/((($AF$1+$AF$2)/2)+237.3))))))-1)*1000-(0.622/((101325/($AJ$1*611*EXP(17.27*($AF$3/($AF$3+237.3))))))-1)*1000))/(1005*((($AF$1+$AF$2)/2)-$AF$3))))) ->  | BJ14: =IF(SUM(BG14:BI14)=0,1,0) -> 
A15: 613014 | B15: 6 | C15: 130 | E15: 14 | G15: 22.8 | K15: 1170 | O15: 1 | R15: 0 | S15: 1170 | T15: 0 | U15: 0 | V15: 0 | W15: 101 | X15: 0 | Y15: 0 | Z15: 0.6457845327 | AA15: 0.0065250871 | AB15: 0.0005785274086 | AC15: 1.805666115 | AP15: 0.25 | AQ15: 2.2 | AR15: N/A | AS15: N/A | AU15: 0 | AV15: 24 | AW15: N/A | AX15: N/A
A16: 616514 | B16: 6 | C16: 165 | E16: 14 | G16: 24 | K16: 1560 | O16: 1 | R16: 0 | S16: 1560 | T16: 0 | U16: =ROUND(M16*POWER((($L$1-$L$2)/LN(($L$1-$L$3)/($L$2-$L$3)))/((75-65)/LN((75-20)/(65-20))),Q16),0) -> 0 | V16: 0 | W16: 134 | X16: 0 | Y16: 0 | Z16: 1.391674238 | AA16: 0.0065250871 | AB16: 0.0005785274086 | AC16: 1.805666115 | AP16: 0.32 | AQ16: 3.1 | AR16: N/A | AS16: N/A | AU16: 0 | AV16: 24 | AW16: N/A | AX16: N/A
A17: 620014 | B17: 6 | C17: 200 | E17: 14 | G17: 25 | K17: 1950 | O17: 1 | R17: 0 | S17: 1950 | T17: 0 | U17: 0 | V17: 0 | W17: 168 | X17: 0 | Y17: 0 | Z17: 2.56706815 | AA17: 0.0065250871 | AB17: 0.0005785274086 | AC17: 1.805666115 | AP17: 0.4 | AQ17: 3.5 | AR17: N/A | AS17: N/A | AU17: 0 | AV17: 24 | AW17: N/A | AX17: N/A
L21: lengte | M21: hoogte | N21: width
K22: geselecteerd
L23: 60 | M23: 6 | N23: 14
L24: 95
L25: 130
L26: 165
L27: 200
N30: =IF($P$41=1,NL!I3,IF($P$41=2,EN!I3,IF($P$41=3,DE!I3,IF($P$41=4,FR!I3,IF($P$41=5,NR!I3,IF($P$41=6,SP!I3,IF($P$41=7,SW!I3,IF($P$41=8,TS!I3,IF($P$41=9,ExtraTaal1!I3,IF($P$41=10,ExtraTaal2!I3,IF($P$41=11,ExtraTaal3!I3,))))))))))) -> Copiar todos los datos | P30: Nederlands
N31: =IF($P$41=1,NL!I4,IF($P$41=2,EN!I4,IF($P$41=3,DE!I4,IF($P$41=4,FR!I4,IF($P$41=5,NR!I4,IF($P$41=6,SP!I4,IF($P$41=7,SW!I4,IF($P$41=8,TS!I4,IF($P$41=9,ExtraTaal1!I4,IF($P$41=10,ExtraTaal2!I4,IF($P$41=11,ExtraTaal3!I4,))))))))))) -> Unidades-SI | P31: English
N32: =IF($P$41=1,NL!I5,IF($P$41=2,EN!I5,IF($P$41=3,DE!I5,IF($P$41=4,FR!I5,IF($P$41=5,NR!I5,IF($P$41=6,SP!I5,IF($P$41=7,SW!I5,IF($P$41=8,TS!I5,IF($P$41=9,ExtraTaal1!I5,IF($P$41=10,ExtraTaal2!I5,IF($P$41=11,ExtraTaal3!I5,))))))))))) -> Unidades-Imperial | P32: Français
P33: Deutsch
P34: Norsk | R34: 1
P35: Español
P36: Svenska
P37: Čeština
P38: ExtraTaal1
P39: ExtraTaal2
P40: ExtraTaal3
P41: =IF('Micro Canal'!J4=data!$P$30,1,IF('Micro Canal'!J4=data!$P$31,2,IF('Micro Canal'!J4=data!$P$32,4,IF('Micro Canal'!J4=data!$P$33,3,IF('Micro Canal'!J4=data!$P$34,5,IF('Micro Canal'!J4=data!$P$35,6,IF('Micro Canal'!J4=data!$P$36,7,IF('Micro Canal'!J4=data!$P$37,8,IF('Micro Canal'!J4=data!$P$38,9,IF('Micro Canal'!J4=data!$P$39,10,IF('Micro Canal'!J4=data!$P$40,11,))))))))))) -> 6

Sheet NL (hidden)
B1: Selectiontool Strada Hybrid
B3: Lengte | D3: mm | E3: Invulformulier | F3: Statisch toestel | G3: rel. vocht. | H3: Unit | I3: Kopieer alle data
B4: Hoogte | D4: =D3 -> mm | E4: Uitvoering | F4: Hybrid toestel | G4: Eenheidsstelsel | H4: DBH set | I4: SI-eenheden
B5: Type | E5: Temperaturen | F5: DBH rail type | G5: Toestel | I5: Imperiale-eenheden
B6: Diepte | D6: =D3 -> mm | E6: Indien de ventilatoren uitgeschakeld zijn, is de afgifte een indicatieve waarde. | F6: Waterzijdig drukverlies
B8: Verwarmen: | G8: Koelen:
B9: Water aanvoer | E9: =B9 -> Water aanvoer | I9: =D9 -> 0
B10: Water retour | D10: =D9 -> 0 | E10: =B10 -> Water retour | I10: =D9 -> 0
B11: Ruimte (droge bol) | D11: =D9 -> 0 | E11: =B11 -> Ruimte (droge bol) | I11: =D9 -> 0
C13: =CONCATENATE(B8," ",C9,"/",C10,"/",C11) -> Verwarmen: // | E13: =CONCATENATE(G8," ",H9,"/",H10,"/",H11) -> Koelen: // | G13: Watervolume | H13: Elektrisch verbruik [W] | I13: Geluidsdrukniveau [dB(A)]**** | J13: Geluidsvermogen [dB(A)]****
C14: Verwarmvermogen | D14: Waterdebiet | E14: Koelvermogen | F14: =D14 -> Waterdebiet
A15: Statisch (indicatieve waarde)
A16: EN16430 | B16: Ventilatorsnelheid
B17: Ventilatorsnelheid 2
B18: Ventilatorsnelheid 3
B19: Stuurspanning [v]
A20: * | B20: Koelvermogen is berekend volgens EN16430 met de ventilatoren naar boven blazend voor alle types.
A21: ** | B21: Wanneer het watervolume in gallons wordt gegeven, zijn dit imperial gallons.
A22: *** | B22: Geluidsvermogen volgens ISO 3741:2010, Voor het geluidsdrukniveau is er een aangenomen kamerdemping van 8 dB(A).

Sheet EN (hidden)
B1: Selectiontool Strada Hybrid
B3: Length | D3: mm | E3: Formulary | F3: Static device | G3: rel. humid. | H3: Unit | I3: Copy all data
B4: Heigth | D4: =D3 -> mm | E4: Version | F4: Hybrid device | G4: Unit conversion | H4: DBH set | I4: SI-units
B5: Type | E5: Temperatures | F5: DBH rail type | G5: Device | I5: Imperial-units
B6: Depth | D6: =D3 -> mm | E6: If the fans are switched off, the output is an indicative value. | F6: Water side pressure loss
B8: Heating: | G8: Cooling:
B9: Supply water | E9: =B9 -> Supply water | I9: =D9 -> 0
B10: Return water | D10: =D9 -> 0 | E10: =B10 -> Return water | I10: =D9 -> 0
B11: Entering air (dry bulb) | D11: =D9 -> 0 | E11: =B11 -> Entering air (dry bulb) | I11: =D9 -> 0
C13: =CONCATENATE(B8," ",C9,"/",C10,"/",C11) -> Heating: // | E13: =CONCATENATE(G8," ",H9,"/",H10,"/",H11) -> Cooling: // | G13: Water volume | H13: Electrical consumption [W] | I13: Sound pressure level [dB(A)]**** | J13: Sound power [dB(A)]****
C14: Heating capacity | D14: Water flow | E14: Cooling capacity | F14: =D14 -> Water flow
A15: Fans off (indicative value)
A16: EN16430 | B16: Fan speed
B17: Fan speed selection 2
B18: Fan speed selection 3
B19: Fan voltage [V]
A20: * | B20: Cooling power is calcullated according EN16430 with fans blowing up for all heights.
A21: ** | B21: When the water volume is given in gallons, the units are specifically imperial gallons.
A22: *** | B22: Soundpower according to ISO 3741:2010, sound pressure level with assumed room damping of 8 dB(A).

Sheet DE (hidden)
B1: Selectiontool Strada Hybrid
B3: Länge | D3: mm | E3: Eingabefelder | F3: Statisches Gerät | G3: rel. Luftf. | H3: Unit | I3: Kopieren Sie alle daten
B4: Höhe | D4: =D3 -> mm | E4: Ausführung | F4: Hybrid Gerät | G4: Einheiten | H4: DBH set | I4: SI-einheiten
B5: Typ | E5: Temperaturen | F5: DBH rail typ | G5: Gerät | I5: Imperiale-einheiten
B6: Tiefe | D6: =D3 -> mm | E6: Wenn die Lüfter ausgeschaltet sind, ist der Ausgang ein Richtwert. | F6: zug. wassers. Druckverlust
B8: Heizen: | G8: Kühlen:
B9: Vorlauf wasser | E9: =B9 -> Vorlauf wasser | I9: =D9 -> 0
B10: Rücklauf wasser | D10: =D9 -> 0 | E10: =B10 -> Rücklauf wasser | I10: =D9 -> 0
B11: Raum (trocken) | D11: =D9 -> 0 | E11: =B11 -> Raum (trocken) | I11: =D9 -> 0
C13: =CONCATENATE(B8," ",C9,"/",C10,"/",C11) -> Heizen: // | E13: =CONCATENATE(G8," ",H9,"/",H10,"/",H11) -> Kühlen: // | G13: Wasservolumen | H13: Elektr. Leistung [W] | I13: Schalldruckpegel [dB(A)]**** | J13: Schallleistungspegel [dB(A)]****
C14: Heizleistung | D14: Heizmittelstrom | E14: Kühlleistung | F14: Kühlmittelstrom
A15: Lüfter aus (richtwert)
A16: EN16430 | B16: Auslegungsstufe
B17: Auslegungsstufe 2
B18: Auslegungsstufe 3
B19: Lufterspannung [V]
A20: * | B20: Die Kühlleistung wird nach EN 16430 berechnet, wobei die Lüfter für alle Höhen hochgehen.
A21: ** | B21: Wenn das Wasservolumen in Gallonen angegeben ist, sind dies imperiale Gallonen.
A22: *** | B22: Schallleistung nach ISO 3741: 2010, Schalldruckpegel bei angenommener Raumdämpfung von 8 dB(A).

Sheet FR (hidden)
B1: Selectiontool Strada Hybrid
B3: Longeur | D3: mm | E3: Formulaire | F3: Appareil statique | G3: hum. rel. | H3: Unité | I3: Copier toutes des données
B4: Hauteur | D4: =D3 -> mm | E4: Version | F4: Appareil Hybrid | G4: Système unitaire | H4: DBH set | I4: Unités-SI
B5: Type | E5: Températures | F5: DBH rail type | G5: Appareil | I5: Unités-Impériales
B6: Profondeur | D6: =D3 -> mm | E6: Si les ventilateurs sont éteints, la sortie est une valeur indicative. | F6: Perte de charge
B8: Chauffer: | G8: Refroidir:
B9: Entrée de l'eau | E9: =B9 -> Entrée de l'eau | I9: =D9 -> 0
B10: Retour de l'eau | D10: =D9 -> 0 | E10: =B10 -> Retour de l'eau | I10: =D9 -> 0
B11: Ambiante (bulbe sec) | D11: =D9 -> 0 | E11: =B11 -> Ambiante (bulbe sec) | I11: =D9 -> 0
C13: =CONCATENATE(B8," ",C9,"/",C10,"/",C11) -> Chauffer: // | E13: =CONCATENATE(G8," ",H9,"/",H10,"/",H11) -> Refroidir: // | G13: Volume d'eau | H13: Puissance absorbée elec. [W] | I13: Pression sonore [dB(A)]**** | J13: Puissance sonore [dB(A)]****
C14: Puissance de chauffer | D14: Débit d'eau | E14: Puissance de refroidir | F14: =D14 -> Débit d'eau
A15: Ventilateur éteint (indicative)
A16: EN16430 | B16: Vitesse ventilateur
B17: Vitesse du ventilateur 2
B18: Vitesse du ventilateur 3
B19: Tension ventilateur [V]
A20: * | B20: La puissance de refroidissement est calculée selon EN 16430 avec des ventilateurs qui soufflent pour toutes les hauteurs.
A21: ** | B21: Lorsque le volume d'eau est donné en gallons, ce sont des gallons impérial.
A22: *** | B22: Puissance acoustique selon ISO 3741: 2010, niveau de pression acoustique avec un amortissement de la pièce supposé de 8 dB(A).

Sheet NR (hidden)
B1: Selectiontool Strada Hybrid
B3: Lengde | D3: mm | E3: Inngangsskjema | F3: Statisk modell | G3: rel. fuktighet | H3: Unit | I3: Kopier alle data
B4: Høyde | D4: =D3 -> mm | E4: Versjon | F4: Hybrid modell | G4: Enhetssystem | H4: DBH set | I4: SI-enheter
B5: Type | E5: Temperaturer | F5: DBH rail type | G5: Modell | I5: Imperiale-enheter
B6: Bredde | D6: =D3 -> mm | E6: Hvis viftene er slått av, er utgangen en indikativ verdi. | F6: Trykktap
B8: Varme: | G8: Kjøling:
B9: Tur vann | E9: =B9 -> Tur vann | I9: =D9 -> 0
B10: Retur vann | D10: 0 | E10: =B10 -> Retur vann | I10: =D9 -> 0
B11: Rom (tørr pære) | D11: 0 | E11: =B11 -> Rom (tørr pære) | I11: =D9 -> 0
C13: =CONCATENATE(B8," ",C9,"/",C10,"/",C11) -> Varme: // | E13: =CONCATENATE(G8," ",H9,"/",H10,"/",H11) -> Kjøling: // | G13: Vannvolum | H13: Elektrisk effekt [W] | I13: Lydtrykk [dB(A)]**** | J13: Lydeffekt [dB(A)]****
C14: Varme effekt | D14: Vannmengde | E14: Kjøle effekt | F14: =D14 -> Vannmengde
A15: Lüfter aus (richtwert)
A16: EN16430 | B16: Styresignal
B17: Auslegungsstufe 2
B18: Auslegungsstufe 3
B19: Viftespenning [V]
A20: * | B20: Kjølekapasitet beregnes i henhold til EN16430 med viftene som blåser oppover for alle typer.
A21: ** | B21: Når vannvolumet er gitt i gallon, er dette imperial gallons.
A22: *** | B22: Lydeffekt i henhold til ISO 3741: 2010. For lydtrykknivået er det en antatt romdemping på 8 dB (A).

Sheet SP (hidden)
B1: Selectiontool Strada Hybrid
B3: Longitud | D3: mm | E3: Formulary | F3: Dispositivo estático | G3: Hum. Relativa | H3: Unit | I3: Copiar todos los datos
B4: Altura | D4: =D3 -> mm | E4: Versión | F4: Dispositivo Hybrid | G4: Convers. de unidades | H4: DBH set | I4: Unidades-SI
B5: Tipo | E5: Temperaturas | F5: tipo de riel DBH | G5: Despositivo | I5: Unidades-Imperial
B6: Profund. | D6: =D3 -> mm | E6: La velocidad del ventilador en "0" tiene una emisión indicativa. | F6: Pérdida de carga del agua
B8: Calefacción: | G8: Enfriamiento:
B9: Agua impulsión | E9: =B9 -> Agua impulsión | I9: =D9 -> 0
B10: Agua retorno | D10: =D9 -> 0 | E10: =B10 -> Agua retorno | I10: =D9 -> 0
B11: Ambiente (bulbo seco) | D11: =D9 -> 0 | E11: =B11 -> Ambiente (bulbo seco) | I11: =D9 -> 0
C13: =CONCATENATE(B8," ",C9,"/",C10,"/",C11) -> Calefacción: // | E13: =CONCATENATE(G8," ",H9,"/",H10,"/",H11) -> Enfriamiento: // | G13: Volumen de agua | H13: Potencia eléctrica absorbida [W] | I13: Presión sonora [dB(A)]**** | J13: Potencia sonora [dB(A)]****
C14: Emisión calefacción | D14: Caudal de agua, calefacción | E14: Emisión sensible Frío | F14: =D14 -> Caudal de agua, calefacción
A15: Fans off (indicative value)
A16: EN16430 | B16: Velocidad del ventilador
B17: Fan speed selection 2
B18: Fan speed selection 3
B19: Voltaje control [V]
A20: * | B20: La potencia de enfriamiento se calcula según la norma EN 16430 con ventiladores de todas las alturas.
A21: ** | B21: Cuando el volumen de agua se da en galones, las unidades son específicamente galones imperiales.
A22: *** | B22: Potencia sonora según ISO 3741: 2010, nivel de presión acústica con una amortiguación ambiental supuesta de 8 dB (A).

Sheet SW (hidden)
B1: Selectiontool Strada Hybrid
B3: Délka | D3: mm | E3: Formulary | F3: Statická jednotka | G3: Relativní vlhkost | H3: Jednotka | I3: Kopírovat všechna data
B4: Výška | D4: =D3 -> mm | E4: Verze | F4: Hybridní jednotka | G4: Převod jednotek | H4: DBH sada | I4: Mezinárodní (Sl)
B5: Typ | E5: Teploty | F5: DBH rail type | G5: Device | I5: Imperiální
B6: Hloubka | D6: =D3 -> mm | E6: Pokud jsou ventilátory vypnuté, je výkon pouze orientační. | F6: Tlaková ztráta
B8: Topení: | G8: Chlazení:
B9: Voda na přívodu | E9: =B9 -> Voda na přívodu | I9: =D9 -> 0
B10: Voda na zpátečce | D10: =D9 -> 0 | E10: =B10 -> Voda na zpátečce | I10: =D9 -> 0
B11: teplota vzduchu | D11: =D9 -> 0 | E11: =B11 -> teplota vzduchu | I11: =D9 -> 0
C13: =CONCATENATE(B8," ",C9,"/",C10,"/",C11) -> Topení: // | E13: =CONCATENATE(G8," ",H9,"/",H10,"/",H11) -> Chlazení: // | G13: Objem vody | H13: Spotřeba elektrické energie [W] | I13: Akustický tlak [dB(A)]**** | J13: Akustický výkon [dB(A)]****
C14: Výkon Topení | D14: Průtok vzduchu | E14: Výkon Chlazení | F14: Průtok vody
A15: Fans off (indicative value)
A16: EN16430 | B16: Rychlost otáček ventilátoru
B17: Fan speed selection 2
B18: Fan speed selection 3
B19: Napětí ventilárotu [V]
A20: * | B20: Chladicí výkon vypočítán podle EN 16430 s ventilátory, které u všech typů - výšek foukají nahoru.
A21: **
A22: *** | B22: Akustický výkon podle ISO 3741: 2010, hladina akustického tlaku s předpokládaným útlumem místnosti o 8 dB (A).

Sheet TS (hidden)
B1: Selectiontool Strada Hybrid
B3: Délka | D3: mm | E3: Formulary | F3: Statická jednotka | G3: Relativní vlhkost | H3: Jednotka | I3: Kopírovat všechna data
B4: Výška | D4: =D3 -> mm | E4: Verze | F4: Hybridní jednotka | G4: Převod jednotek | H4: DBH sada | I4: Mezinárodní (Sl)
B5: Typ | E5: Teploty | F5: DBH rail type | G5: Device | I5: Imperiální
B6: Hloubka | D6: =D3 -> mm | E6: Pokud jsou ventilátory vypnuté, je výkon pouze orientační. | F6: Tlaková ztráta
B8: Topení: | G8: Chlazení:
B9: Voda na přívodu | E9: =B9 -> Voda na přívodu | I9: =D9 -> 0
B10: Voda na zpátečce | D10: =D9 -> 0 | E10: =B10 -> Voda na zpátečce | I10: =D9 -> 0
B11: "Suchá" teplota vzduchu | D11: =D9 -> 0 | E11: =B11 -> "Suchá" teplota vzduchu | I11: =D9 -> 0
C13: =CONCATENATE(B8," ",C9,"/",C10,"/",C11) -> Topení: // | E13: =CONCATENATE(G8," ",H9,"/",H10,"/",H11) -> Chlazení: // | G13: Objem vody | H13: Elektrický výkon [W] | I13: Akustický tlak [dB(A)]**** | J13: Akustický výkon [dB(A)]****
C14: Výkon Topení | D14: Průtok vody | E14: Výkon Chlazení | F14: Průtok vody
A15: Fans off (indicative value)
A16: EN16430 | B16: Rychlost otáček ventilátoru
B17: Fan speed selection 2
B18: Fan speed selection 3
B19: Napětí ventilárotu [V]
A20: * | B20: Chladicí výkon vypočítán podle EN 16430 s ventilátory, které u všech typů - výšek foukají nahoru.
A21: ** | B21: Když je objem vody uveden v galonech, jednotky jsou konkrétně imperiální galony.
A22: *** | B22: Akustický výkon podle ISO 3741: 2010, hladina akustického tlaku s předpokládaným útlumem místnosti o 8 dB (A).

Sheet ExtraTaal1 (hidden)
B1: Selectiontool Strada Hybrid
B3: Length | D3: mm | E3: Formulary | F3: Static device | G3: rel. humid. | H3: Unit
B4: Heigth | D4: =D3 -> mm | E4: Version | F4: Hybrid device | G4: Unit conversion
B5: Width | E5: Temperatures | F5: DBH rail type | G5: Device
B6: Depth | D6: =D3 -> mm | E6: Setting 0 is indicative | F6: Water side pressure loss
B8: Heating: | G8: Cooling:
B9: Supply water | E9: =B9 -> Supply water | I9: =D9 -> 0
B10: Return water | D10: =D9 -> 0 | E10: =B10 -> Return water | I10: =D9 -> 0
B11: Entering air (dry bulb) | D11: =D9 -> 0 | E11: =B11 -> Entering air (dry bulb) | I11: =D9 -> 0
C13: =CONCATENATE(B8," ",C9,"/",C10,"/",C11) -> Heating: // | E13: =CONCATENATE(G8," ",H9,"/",H10,"/",H11) -> Cooling: // | G13: Water volume | H13: Electrical consumption [W] | I13: Sound pressure level [dB(A)]**** | J13: Sound power [dB(A)]****
C14: Heating capacity | D14: Water flow | E14: Cooling capacity | F14: =D14 -> Water flow
A15: Fans off (indicative value)
A16: EN16430 | B16: Fan speed
B17: Fan speed selection 2
B18: Fan speed selection 3
B19: Fan voltage [V]
A20: * | B20: Cooling power is calcullated according EN16430 with fans blowing up for all heights.
A21: ** | B21: When the water volume is given in gallons, the units are specifically imperial gallons.
A22: *** | B22: Soundpower according to ISO 3741:2010, sound pressure level with assumed room damping of 8 dB(A).

Sheet ExtraTaal2 (hidden)
B1: Selectiontool Strada Hybrid
B3: Length | D3: mm | E3: Formulary | F3: Static device | G3: rel. humid. | H3: Unit
B4: Heigth | D4: =D3 -> mm | E4: Version | F4: Hybrid device | G4: Unit conversion
B5: Width | E5: Temperatures | F5: DBH rail type | G5: Device
B6: Depth | D6: =D3 -> mm | E6: Setting 0 is indicative | F6: Water side pressure loss
B8: Heating: | G8: Cooling:
B9: Supply water | E9: =B9 -> Supply water | I9: =D9 -> 0
B10: Return water | D10: =D9 -> 0 | E10: =B10 -> Return water | I10: =D9 -> 0
B11: Entering air (dry bulb) | D11: =D9 -> 0 | E11: =B11 -> Entering air (dry bulb) | I11: =D9 -> 0
C13: =CONCATENATE(B8," ",C9,"/",C10,"/",C11) -> Heating: // | E13: =CONCATENATE(G8," ",H9,"/",H10,"/",H11) -> Cooling: // | G13: Water volume | H13: Electrical consumption [W] | I13: Sound pressure level [dB(A)]**** | J13: Sound power [dB(A)]****
C14: Heating capacity | D14: Water flow | E14: Cooling capacity | F14: =D14 -> Water flow
A15: Fans off (indicative value)
A16: EN16430 | B16: Fan speed
B17: Fan speed selection 2
B18: Fan speed selection 3
B19: Fan voltage [V]
A20: * | B20: Cooling power is calcullated according EN16430 with fans blowing up for all heights.
A21: ** | B21: When the water volume is given in gallons, the units are specifically imperial gallons.
A22: *** | B22: Soundpower according to ISO 3741:2010, sound pressure level with assumed room damping of 8 dB(A).

Sheet ExtraTaal3 (hidden)
B1: Selectiontool Strada Hybrid
B3: Length | D3: mm | E3: Formulary | F3: Static device | G3: rel. humid. | H3: Unit
B4: Heigth | D4: =D3 -> mm | E4: Version | F4: Hybrid device | G4: Unit conversion
B5: Width | E5: Temperatures | F5: DBH rail type | G5: Device
B6: Depth | D6: =D3 -> mm | E6: Setting 0 is indicative | F6: Water side pressure loss
B8: Heating: | G8: Cooling:
B9: Supply water | E9: =B9 -> Supply water | I9: =D9 -> 0
B10: Return water | D10: =D9 -> 0 | E10: =B10 -> Return water | I10: =D9 -> 0
B11: Entering air (dry bulb) | D11: =D9 -> 0 | E11: =B11 -> Entering air (dry bulb) | I11: =D9 -> 0
C13: =CONCATENATE(B8," ",C9,"/",C10,"/",C11) -> Heating: // | E13: =CONCATENATE(G8," ",H9,"/",H10,"/",H11) -> Cooling: // | G13: Water volume | H13: Electrical consumption [W] | I13: Sound pressure level [dB(A)]**** | J13: Sound power [dB(A)]****
C14: Heating capacity | D14: Water flow | E14: Cooling capacity | F14: =D14 -> Water flow
A15: Fans off (indicative value)
A16: EN16430 | B16: Fan speed
B17: Fan speed selection 2
B18: Fan speed selection 3
B19: Fan voltage [V]
A20: * | B20: Cooling power is calcullated according EN16430 with fans blowing up for all heights.
A21: ** | B21: When the water volume is given in gallons, the units are specifically imperial gallons.
A22: *** | B22: Soundpower according to ISO 3741:2010, sound pressure level with assumed room damping of 8 dB(A).
